bitfinex/quotes_BTCUSD_20250527
["timestamp","ask_amount","ask_price","bid_price","bid_amount"]
[1748387519673,0.2151425,109030.0,109020.0,0.95319005]
[1748387520100,0.2151425,109030.0,109020.0,1.32215005]
[1748387520640,0.2151425,109030.0,109020.0,0.95319005]
[1748387520848,0.2151425,109030.0,109020.0,1.32215005]
[1748387523855,0.2151425,109030.0,109020.0,1.34049471]
[1748387524219,0.2151425,109030.0,109020.0,1.34049488]
[1748387524450,0.2151425,109030.0,109020.0,1.34966717]
[1748387524648,0.00140675,109030.0,109020.0,3.86761958]
[1748387524858,0.01057778,109030.0,109020.0,3.89881958]
[1748387525067,0.01974897,109030.0,109020.0,3.99287353]
[1748387525295,0.02892033,109030.0,109020.0,3.99587353]
[1748387525703,0.03809194,109030.0,109020.0,3.99587353]
[1748387527708,0.03809194,109030.0,109020.0,3.97967353]
[1748387528811,0.03809194,109030.0,109020.0,3.96467353]
[1748387529581,0.04726364,109030.0,109020.0,3.96467353]
[1748387529785,0.04726364,109030.0,109020.0,3.97967353]
[1748387530010,0.04726364,109030.0,109020.0,4.37547353]
[1748387530305,0.04726364,109030.0,109020.0,4.67477353]
[1748387531773,0.03809194,109030.0,109020.0,4.67477353]
[1748387533650,0.02409194,109030.0,109020.0,4.65977353]
[1748387534526,0.03326297,109030.0,109020.0,4.65977353]
[1748387534750,0.03326289,109030.0,109020.0,4.65977353]
[1748387534960,0.0424345,109030.0,109020.0,4.65977353]
[1748387535579,0.03326289,109030.0,109020.0,4.65977353]
[1748387536037,0.03326297,109030.0,109020.0,4.65977353]
[1748387540003,0.04243467,109030.0,109020.0,4.65977353]
[1748387540459,0.24879939,109030.0,109020.0,2.7862365]
[1748387540737,0.24879939,109030.0,109020.0,2.70260828]
[1748387541175,0.24879939,109030.0,109020.0,2.68363428]
[1748387542348,0.25797117,109030.0,109020.0,2.68363428]
[1748387542831,0.2522222,109030.0,109020.0,2.68363428]
[1748387544148,0.23387923,109030.0,109020.0,1.83849727]
[1748387544375,0.23387923,109030.0,109020.0,2.31300238]
[1748387544582,0.23387923,109030.0,109020.0,2.32217475]
[1748387546048,0.23387923,109030.0,109020.0,2.33134704]
[1748387548702,0.22470753,109030.0,109020.0,2.32217475]
[1748387550795,0.21553575,109030.0,109020.0,1.32056332]
[1748387551036,0.21553575,109030.0,109020.0,1.83633151]
[1748387551274,0.21553575,109030.0,109020.0,1.84550405]
[1748387551492,0.21553575,109030.0,109020.0,1.85467651]
[1748387553644,0.21553575,109030.0,109020.0,0.31669232]
[1748387553879,0.34649661,109030.0,109020.0,0.01739232]
[1748387554098,0.62833661,109030.0,109020.0,0.006]
[1748387554320,0.23281574,109010.0,109000.0,0.48464]
[1748387554531,0.32386969,109010.0,109000.0,0.48464]
[1748387556279,0.32386969,109010.0,109000.0,0.3988]
[1748387557411,0.32386969,109010.0,109000.0,0.3998]
[1748387561802,0.37460343,109010.0,109000.0,0.004]
[1748387563024,0.37460343,109010.0,109000.0,0.002]
[1748387563434,0.37560343,109010.0,109000.0,0.002]
[1748387570644,0.32486969,109010.0,109000.0,0.002]
[1748387574825,0.23381574,109010.0,109000.0,0.002]
[1748387575036,0.20281574,109010.0,109000.0,0.18548623]
[1748387575241,0.20281574,109010.0,109000.0,0.002]
[1748387578428,0.21901574,109010.0,109000.0,0.002]
[1748387578653,0.23441574,109010.0,109000.0,0.002]
[1748387586368,0.23441574,109010.0,109000.0,0.42888]
[1748387593902,0.23441574,109010.0,109000.0,0.08688]
[1748387595249,0.23441574,109010.0,108990.0,0.79596]
[1748387595470,0.19266037,109000.0,108990.0,1.07788]
[1748387595685,0.19266037,109000.0,108990.0,1.16476]
[1748387595917,0.19266037,109000.0,108990.0,0.88284]
[1748387596144,0.22386037,109000.0,108990.0,0.39596]
[1748387596357,0.22386037,109000.0,108990.0,0.76476]
[1748387596593,0.22386037,109000.0,108990.0,0.76576]
[1748387596798,0.22386037,109000.0,108990.0,1.16476]
[1748387597016,0.22386037,109000.0,108990.0,1.16576]
[1748387597227,0.22386037,109000.0,108990.0,1.16676]
[1748387597445,0.22386037,109000.0,108990.0,1.16576]
[1748387597866,0.22386037,109000.0,108990.0,1.16676]
[1748387599710,0.19266037,109000.0,108990.0,1.16676]
[1748387614179,0.01834819,109000.0,108990.0,1.35026307]
[1748387614398,0.00917405,109000.0,108990.0,1.4095875]
[1748387614615,0.02752115,109000.0,108990.0,3.40756192]
[1748387615042,0.03669487,109000.0,108990.0,3.40756192]
[1748387615256,0.04586901,109000.0,108990.0,3.40756192]
[1748387615900,0.03669487,109000.0,108990.0,3.40756192]
[1748387616142,0.04586892,109000.0,108990.0,3.40756192]
[1748387616609,0.04984483,109020.0,109010.0,0.20181608]
[1748387616831,0.2017974,109020.0,109010.0,0.81999508]
[1748387617050,0.2017974,109020.0,109010.0,0.69226987]
[1748387617259,0.2331974,109020.0,109010.0,1.08667525]
[1748387617682,0.2331974,109020.0,109010.0,1.07750187]
[1748387617957,0.21485257,109020.0,109010.0,1.07750187]
[1748387618143,0.21485257,109020.0,109010.0,0.77793347]
[1748387618337,0.21485257,109020.0,109010.0,0.94798247]
[1748387618476,0.21585257,109020.0,109010.0,0.77793347]
[1748387618986,0.21585257,109020.0,109010.0,0.76876]
[1748387619427,0.21585257,109020.0,109010.0,0.938809]
[1748387619600,0.21585257,109020.0,109010.0,0.76876]
[1748387619809,0.21585257,109020.0,109010.0,0.936059]
[1748387620272,0.21585257,109020.0,109010.0,0.76876]
[1748387620597,0.21585257,109020.0,109010.0,1.069379]
[1748387620949,0.21585257,109020.0,109010.0,0.787459]
[1748387621181,0.21585257,109020.0,109010.0,0.08684]
[1748387622282,0.21585257,109020.0,109010.0,0.48684]
[1748387623836,0.21585257,109020.0,109010.0,0.82684]
[1748387624059,0.21585257,109020.0,109010.0,0.993059]
[1748387625896,0.21585257,109020.0,109010.0,0.82684]
[1748387632140,0.21585257,109020.0,109010.0,0.42684]
[1748387632824,0.2248427,109010.0,109000.0,0.98114]
[1748387633047,0.2248427,109010.0,109000.0,0.6993]
[1748387633271,0.2248427,109010.0,109000.0,1.06798]
[1748387633919,0.2248427,109010.0,109000.0,0.76868]
[1748387635016,0.2248427,109010.0,109000.0,0.4]
[1748387635229,0.2248427,109010.0,109000.0,0.76868]
[1748387635446,0.2248427,109010.0,109000.0,0.741]
[1748387635658,0.2248427,109010.0,109000.0,1.10968]
[1748387636836,0.2248427,109010.0,109000.0,0.741]
[1748387637034,0.2248427,109010.0,109000.0,1.10968]
[1748387637228,0.2248427,109010.0,109000.0,0.741]
[1748387637704,0.2248427,109010.0,109000.0,1.10968]
[1748387641454,0.20181591,109010.0,109000.0,1.31151459]
[1748387641679,0.1834694,109010.0,109000.0,1.10968]
[1748387644858,0.1834694,109010.0,109000.0,1.50556]
[1748387646317,0.1834694,109010.0,109000.0,1.10556]
[1748387646739,0.1834694,109010.0,109000.0,0.73688]
[1748387646952,0.2137694,109010.0,109000.0,1.10556]
[1748387647381,0.2137694,109010.0,109000.0,1.32556]
[1748387649112,0.2137694,109010.0,109000.0,1.04372]
[1748387649328,0.2137694,109010.0,109000.0,0.39688]
[1748387649551,0.30482335,109010.0,109000.0,0.48372]
[1748387650463,0.30482335,109010.0,109000.0,0.001]
[1748387651496,0.2243778,108990.0,108980.0,0.42884]
[1748387651709,0.23355278,108990.0,108980.0,0.42884]
[1748387652701,0.23355278,108990.0,108980.0,0.43333439]
[1748387656027,0.23355278,108990.0,108980.0,0.09333439]
[1748387661300,0.23355278,108990.0,108980.0,0.09133439]
[1748387661437,0.23355278,108990.0,108980.0,0.09033439]
[1748387669728,0.20185278,108990.0,108980.0,0.10112641]
[1748387670154,0.23275278,108990.0,108980.0,0.10112641]
[1748387670568,0.23275278,108990.0,108980.0,0.23428641]
[1748387670778,0.23275278,108990.0,108980.0,0.60300641]
[1748387672776,0.23275278,108990.0,108980.0,0.32112641]
[1748387673244,0.23275278,108990.0,108980.0,0.38300641]
[1748387673663,0.26907663,108990.0,108980.0,0.38300641]
[1748387674255,0.26907663,108990.0,108980.0,0.01428641]
[1748387674463,0.26907663,108990.0,108980.0,0.10112641]
[1748387674675,0.23275278,108990.0,108980.0,0.10112641]
[1748387677277,0.23275278,108990.0,108980.0,0.01428641]
[1748387677514,0.23275278,108990.0,108980.0,0.32112641]
[1748387677866,0.23275278,108990.0,108980.0,0.23428641]
[1748387678174,0.23275278,108990.0,108980.0,0.32112641]
[1748387680555,0.23275278,108990.0,108980.0,0.10112641]
[1748387680968,0.23275278,108990.0,108980.0,0.32112641]
[1748387684106,0.23275278,108990.0,108980.0,0.10112641]
[1748387684462,0.2743782,108990.0,108980.0,0.10112641]
[1748387684663,0.2743782,108990.0,108980.0,0.32112641]
[1748387686628,0.23275278,108990.0,108980.0,0.32112641]
[1748387687397,0.20185278,108990.0,108980.0,0.50464632]
[1748387687564,0.20185278,108990.0,108980.0,0.33772641]
[1748387689235,0.20185278,108990.0,108980.0,0.11772641]
[1748387690670,0.20185278,108990.0,108980.0,0.10112641]
[1748387692536,0.20185278,108990.0,108980.0,0.32112641]
[1748387693357,0.20185278,108990.0,108980.0,0.53654632]
[1748387693559,0.20185278,108990.0,108980.0,0.35302641]
[1748387696788,0.20185278,108990.0,108980.0,0.10112641]
[1748387697166,0.20185278,108990.0,108980.0,0.32112641]
[1748387697710,0.21785278,108990.0,108980.0,0.60296641]
[1748387699748,0.21785278,108990.0,108980.0,0.62296641]
[1748387700371,0.23365278,108990.0,108980.0,0.62296641]
[1748387700809,0.20185278,108990.0,108980.0,0.62296641]
[1748387701034,0.20185278,108990.0,108980.0,1.14648632]
[1748387701256,0.01834971,108990.0,108980.0,1.19603805]
[1748387701493,0.02752477,108990.0,108980.0,1.30544314]
[1748387701740,0.21102784,108990.0,108980.0,1.09439635]
[1748387701995,0.21102784,108990.0,108980.0,1.27791626]
[1748387702469,0.21102784,108990.0,108980.0,1.28709217]
[1748387702894,0.19267813,108990.0,108980.0,1.08522036]
[1748387703134,0.19267813,108990.0,108980.0,1.05402036]
[1748387704510,0.19267813,108990.0,108980.0,1.06319635]
[1748387704723,0.19267813,108990.0,108980.0,1.25589208]
[1748387705057,0.19267813,108990.0,108980.0,1.25589217]
[1748387705261,0.19267813,108990.0,108980.0,1.05402036]
[1748387705465,0.19267813,108990.0,108980.0,1.24671626]
[1748387705699,0.19267813,108990.0,108980.0,1.25589217]
[1748387707055,0.20185294,108990.0,108980.0,1.26506791]
[1748387707823,0.20185294,108990.0,108980.0,1.25589217]
[1748387708033,0.19267813,108990.0,108980.0,1.25589217]
[1748387710361,0.19267813,108990.0,108980.0,1.02156576]
[1748387710559,0.18350307,108990.0,108980.0,1.02156576]
[1748387711395,0.18350307,108990.0,108980.0,1.14184819]
[1748387712048,0.18350307,108990.0,108980.0,1.15102401]
[1748387712602,0.18350307,108990.0,108980.0,1.14184819]
[1748387713634,0.21450307,108990.0,108980.0,0.37028243]
[1748387713840,0.21450307,108990.0,108980.0,0.73888243]
[1748387714238,0.21450307,108990.0,108980.0,0.37028243]
[1748387714553,0.21450307,108990.0,108980.0,0.73888243]
[1748387715194,0.21450307,108990.0,108980.0,0.92240234]
[1748387715398,0.21394307,108990.0,108980.0,0.73888243]
[1748387715797,0.21394307,108990.0,108980.0,0.84888243]
[1748387718053,0.21394307,108990.0,108980.0,0.8386]
[1748387721257,0.21394307,108990.0,108980.0,0.47]
[1748387721469,0.21394307,108990.0,108980.0,0.83856]
[1748387723322,0.21394307,108990.0,108980.0,1.02207991]
[1748387723523,0.19961307,108990.0,108980.0,1.0312559]
[1748387723939,0.19961307,108990.0,108980.0,0.84773599]
[1748387724804,0.19961307,108990.0,108980.0,0.49856]
[1748387725399,0.18441307,108990.0,108980.0,0.84773599]
[1748387726422,0.18441307,108990.0,108980.0,0.83856]
[1748387726641,0.19961307,108990.0,108980.0,0.64724615]
[1748387726829,0.19961307,108990.0,108980.0,0.83994188]
[1748387727030,0.19961307,108990.0,108980.0,0.64724615]
[1748387727229,0.19961307,108990.0,108980.0,0.83994205]
[1748387727471,0.19961307,108990.0,108980.0,0.64724615]
[1748387728833,0.19990143,109000.0,108990.0,0.00917515]
[1748387729058,0.00917355,109000.0,108990.0,4.33280726]
[1748387729277,0.01117304,109010.0,109000.0,3.39177014]
[1748387729493,0.02034567,109010.0,109000.0,3.88314409]
[1748387729769,0.03869184,109010.0,109000.0,3.76300709]
[1748387729974,0.23133513,109010.0,109000.0,1.53801809]
[1748387730186,0.22216276,109010.0,109000.0,1.19207137]
[1748387730385,0.21398955,109010.0,109000.0,1.17637137]
[1748387730587,0.21398955,109010.0,109000.0,1.18554526]
[1748387732119,0.21498955,109010.0,109000.0,1.18554526]
[1748387733245,0.21498955,109010.0,109000.0,1.19471906]
[1748387733464,0.21498955,109010.0,109000.0,1.20981906]
[1748387735662,0.21498955,109010.0,109000.0,1.19471906]
[1748387736674,0.19260728,109030.0,109020.0,1.85133511]
[1748387737019,0.23327898,109030.0,109020.0,1.05410662]
[1748387737170,0.22410745,109030.0,109020.0,0.974956]
[1748387737378,0.22410745,109030.0,109020.0,1.16758119]
[1748387737578,0.22410745,109030.0,109020.0,1.17675356]
[1748387737776,0.22460178,109030.0,109020.0,1.18592585]
[1748387738221,0.23377339,109030.0,109020.0,1.18592585]
[1748387738359,0.21777339,109030.0,109020.0,1.18592585]
[1748387738784,0.20860178,109030.0,109020.0,1.17675373]
[1748387738991,0.20227239,109030.0,109020.0,1.26880768]
[1748387739197,0.24214467,109030.0,109020.0,1.12707281]
[1748387739400,0.24214467,109030.0,109020.0,1.16375543]
[1748387739607,0.24214467,109030.0,109020.0,1.18209992]
[1748387739830,0.24214467,109030.0,109020.0,1.19581508]
[1748387740981,0.01883664,109030.0,109020.0,1.20498711]
[1748387741212,0.01883664,109030.0,109020.0,0.85288711]
[1748387741431,0.00966536,109030.0,109020.0,1.23694711]
[1748387741654,0.02800783,109030.0,109020.0,1.23694711]
[1748387741899,0.02800775,109030.0,109020.0,1.23694711]
[1748387743005,0.00049433,109030.0,109020.0,1.25148796]
[1748387743441,0.00049433,109030.0,109020.0,1.55078796]
[1748387743899,0.24365256,109050.0,109040.0,0.54176055]
[1748387744107,0.2344828,109050.0,109040.0,0.62848055]
[1748387744541,0.2344828,109050.0,109040.0,0.65598655]
[1748387744980,0.22531287,109050.0,109040.0,0.65598655]
[1748387745411,0.22531287,109050.0,109040.0,0.75621111]
[1748387745412,0.21295114,109050.0,109040.0,0.75621111]
[1748387745631,0.22212124,109050.0,109040.0,0.77455207]
[1748387745849,0.22212116,109050.0,109040.0,1.75961507]
[1748387746067,0.23129126,109050.0,109040.0,1.75961507]
[1748387746384,0.03154904,109050.0,109040.0,1.75961456]
[1748387746601,0.22412116,109050.0,109040.0,1.75961456]
[1748387747017,0.23329126,109050.0,109040.0,1.75044421]
[1748387747240,0.21495215,109050.0,109040.0,1.73210325]
[1748387747459,0.20578222,109050.0,109040.0,1.19627095]
[1748387747701,0.2291122,109050.0,109040.0,0.92845569]
[1748387747918,0.2291122,109050.0,109040.0,1.22372492]
[1748387748562,0.2291122,109050.0,109040.0,0.700306]
[1748387748795,0.2291122,109050.0,109040.0,0.114226]
[1748387749030,0.2291122,109050.0,109040.0,0.395866]
[1748387749267,0.2291122,109050.0,109040.0,0.507219]
[1748387753589,0.2291122,109050.0,109040.0,0.395866]
[1748387754884,0.2291122,109050.0,109040.0,0.507738]
[1748387756484,0.2291122,109050.0,109040.0,0.847738]
[1748387758129,0.2291122,109050.0,109040.0,0.84381544]
[1748387759627,0.2291122,109050.0,109040.0,0.735786]
[1748387759844,0.2291122,109050.0,109040.0,0.70828]
[1748387760637,0.2291122,109050.0,109040.0,0.42672]
[1748387761837,0.04017161,109030.0,109020.0,0.34052216]
[1748387762037,0.04017161,109030.0,109020.0,0.40962216]
[1748387762038,0.22360736,109030.0,109020.0,0.40962216]
[1748387762307,0.22360736,109030.0,109020.0,0.74962216]
[1748387762513,0.22360736,109030.0,109020.0,0.72211516]
[1748387762694,0.22360736,109030.0,109020.0,0.44043516]
[1748387762917,0.22360736,109030.0,109020.0,0.72211516]
[1748387763564,0.22360736,109030.0,109020.0,0.72411516]
[1748387763807,0.22360736,109030.0,109020.0,0.72511516]
[1748387767736,0.22360736,109030.0,109020.0,2.09352716]
[1748387768587,0.22360736,109030.0,109020.0,2.02444816]
[1748387768771,0.22360736,109030.0,109020.0,0.95295616]
[1748387771269,0.22360736,109030.0,109020.0,1.13640873]
[1748387771475,0.20177889,109030.0,109020.0,1.22746268]
[1748387771687,0.19260736,109030.0,109020.0,1.04401011]
[1748387773266,0.19260736,109030.0,109020.0,1.06401011]
[1748387777920,0.19260736,109030.0,109020.0,1.25663522]
[1748387778162,0.19260736,109030.0,109020.0,1.24746268]
[1748387778385,0.19260736,109030.0,109020.0,1.06401011]
[1748387779762,0.19212736,109030.0,109020.0,1.06401011]
[1748387780591,0.19212736,109030.0,109020.0,1.26580767]
[1748387781047,0.19212736,109030.0,109020.0,1.27497987]
[1748387781492,0.19212736,109030.0,109020.0,1.67077987]
[1748387781942,0.19212736,109030.0,109020.0,1.66160767]
[1748387784285,0.00917061,109040.0,109030.0,0.35834297]
[1748387784514,0.00917061,109040.0,109030.0,1.45078792]
[1748387784515,0.20176039,109040.0,109030.0,1.45078792]
[1748387784723,0.20176039,109040.0,109030.0,1.19443509]
[1748387784967,0.19258978,109040.0,109030.0,1.19443509]
[1748387785181,0.22358978,109040.0,109030.0,1.22194209]
[1748387785403,0.22358978,109040.0,109030.0,1.13577709]
[1748387785620,0.22358978,109040.0,109030.0,0.78881065]
[1748387786296,0.21441892,109040.0,109030.0,0.78881065]
[1748387786927,0.21441892,109040.0,109030.0,0.79798226]
[1748387787434,0.21441892,109040.0,109030.0,0.88470226]
[1748387787851,0.18341892,109040.0,109030.0,0.89387379]
[1748387788697,0.19941892,109040.0,109030.0,0.89387379]
[1748387788910,0.19941892,109040.0,109030.0,0.88470226]
[1748387789128,0.19941892,109040.0,109030.0,0.87553065]
[1748387789336,0.21561892,109040.0,109030.0,0.87553065]
[1748387791275,0.21561892,109040.0,109030.0,0.86635895]
[1748387791484,0.21561892,109040.0,109030.0,0.87553073]
[1748387792832,0.21561892,109040.0,109030.0,0.86635895]
[1748387793774,0.21561892,109040.0,109030.0,0.6829232]
[1748387794006,0.21561892,109040.0,109030.0,0.6718822]
[1748387794229,0.21561892,109040.0,109030.0,0.4699862]
[1748387794470,0.21561892,109040.0,109030.0,0.9282732]
[1748387796041,0.21561892,109040.0,109030.0,1.13005226]
[1748387796262,0.21561892,109040.0,109030.0,1.12088073]
[1748387796263,0.18341892,109040.0,109030.0,1.12088073]
[1748387797142,0.18341892,109040.0,109030.0,1.13005243]
[1748387797568,0.18341892,109040.0,109030.0,1.12088073]
[1748387797802,0.18341892,109040.0,109030.0,1.12188073]
[1748387798020,0.18341892,109040.0,109030.0,1.13105234]
[1748387798230,0.18341892,109040.0,109030.0,1.13105243]
[1748387798414,0.18341892,109040.0,109030.0,1.15855843]
[1748387798664,0.18341892,109040.0,109030.0,1.16055843]
[1748387799787,0.16441892,109040.0,109030.0,1.16055843]
[1748387800011,0.16441892,109040.0,109030.0,1.17890157]
[1748387800903,0.16441892,109040.0,109030.0,1.16973004]
[1748387801805,0.2167421,109050.0,109030.0,1.0705981]
[1748387802047,0.01834138,109040.0,109030.0,3.76734726]
[1748387802254,0.01834096,109040.0,109030.0,3.78244726]
[1748387802469,0.02751173,109040.0,109030.0,4.09704726]
[1748387802914,0.21093065,109040.0,109030.0,4.06564743]
[1748387803350,0.21093065,109040.0,109030.0,4.06664743]
[1748387803597,0.21093065,109040.0,109030.0,4.04830479]
[1748387803817,0.21093065,109040.0,109030.0,3.72791579]
[1748387804047,0.21093065,109040.0,109030.0,3.73803267]
[1748387804279,0.22010151,109040.0,109030.0,3.74720395]
[1748387804750,0.22010151,109040.0,109030.0,3.74720344]
[1748387806268,0.22010151,109040.0,109030.0,3.76720344]
[1748387807380,0.22927245,109040.0,109030.0,3.76720344]
[1748387807736,0.22927245,109040.0,109030.0,3.42725801]
[1748387808687,0.2201021,109040.0,109030.0,3.41808682]
[1748387809463,0.2201021,109040.0,109030.0,3.40891554]
[1748387809803,0.2201021,109040.0,109030.0,3.74891554]
[1748387810107,0.21093149,109040.0,109030.0,3.74891554]
[1748387811680,0.21093149,109040.0,109030.0,3.73974409]
[1748387811897,0.20176072,109040.0,109030.0,3.73057256]
[1748387812116,0.20176072,109040.0,109030.0,4.12633256]
[1748387815317,0.00917061,109040.0,109030.0,4.15384673]
[1748387815537,0.03334,109050.0,109040.0,2.28982578]
[1748387815722,0.24425148,109050.0,109040.0,2.68017973]
[1748387815917,0.23508188,109050.0,109040.0,1.35143781]
[1748387816151,0.22591203,109050.0,109040.0,1.35143781]
[1748387816387,0.2167421,109050.0,109040.0,0.6393]
[1748387816579,0.22298969,109040.0,109030.0,0.41676]
[1748387816784,0.29618609,109040.0,109030.0,0.41676]
[1748387816989,0.29618609,109040.0,109030.0,0.41576]
[1748387818150,0.22298969,109040.0,109030.0,0.41776]
[1748387819249,0.22298969,109040.0,109030.0,0.50444]
[1748387819665,0.20866457,109040.0,109030.0,0.50444]
[1748387819811,0.21783534,109040.0,109030.0,0.50444]
[1748387823366,0.21783534,109040.0,109030.0,0.41776]
[1748387823583,0.21783534,109040.0,109030.0,0.50448]
[1748387831571,0.21783534,109040.0,109030.0,0.10872]
[1748387838847,0.20177889,109030.0,109020.0,0.34]
[1748387839053,0.23437889,109030.0,109020.0,0.70824]
[1748387839291,0.23437889,109030.0,109020.0,0.42668]
[1748387840235,0.23437889,109030.0,109020.0,0.43068]
[1748387845961,0.20177889,109030.0,109020.0,0.43068]
[1748387846189,0.01834314,109030.0,109020.0,0.98264068]
[1748387846439,0.21095059,109030.0,109020.0,1.04086271]
[1748387846657,0.21095059,109030.0,109020.0,1.05586271]
[1748387847137,0.20177906,109030.0,109020.0,1.0758628]
[1748387847354,0.20177906,109030.0,109020.0,1.08503517]
[1748387847587,0.20177906,109030.0,109020.0,1.07003517]
[1748387847818,0.20177906,109030.0,109020.0,1.05503517]
[1748387848935,0.20177906,109030.0,109020.0,1.03669034]
[1748387849144,0.20177906,109030.0,109020.0,0.84406515]
[1748387849145,0.20810745,109030.0,109020.0,0.84406515]
[1748387849368,0.20810745,109030.0,109020.0,0.85765039]
[1748387849757,0.20810745,109030.0,109020.0,1.04110296]
[1748387849994,0.20810745,109030.0,109020.0,0.85765039]
[1748387850447,0.20810745,109030.0,109020.0,1.13917039]
[1748387853215,0.20810745,109030.0,109020.0,1.53497039]
[1748387854313,0.19260745,109030.0,109020.0,1.53497039]
[1748387856521,0.19260745,109030.0,109020.0,1.25345039]
[1748387856731,0.19260745,109030.0,109020.0,1.53497039]
[1748387860751,0.20900745,109030.0,109020.0,1.53497039]
[1748387864215,0.22480745,109030.0,109020.0,1.53497039]
[1748387865065,0.22480745,109030.0,109020.0,1.23363019]
[1748387871295,0.22480745,109030.0,109020.0,0.78792]
[1748387871921,0.22480745,109030.0,109020.0,0.950219]
[1748387872603,0.22480745,109030.0,109020.0,1.290219]
[1748387877392,0.22480745,109030.0,109020.0,0.894419]
[1748387882342,0.22480745,109030.0,109020.0,0.880685]
[1748387882548,0.22480745,109030.0,109020.0,0.846885]
[1748387883823,0.22480745,109030.0,109020.0,0.478805]
[1748387884035,0.22480745,109030.0,109020.0,0.846885]
[1748387884286,0.22480745,109030.0,109020.0,0.73208]
[1748387884905,0.22480745,109030.0,109020.0,0.907028]
[1748387888207,0.22480745,109030.0,109020.0,0.538948]
[1748387888430,0.22480745,109030.0,109020.0,0.906988]
[1748387889277,0.22480745,109030.0,109020.0,0.893433]
[1748387891371,0.22480745,109030.0,109020.0,1.289233]
[1748387891878,0.22480745,109030.0,109020.0,0.8464]
[1748387892125,0.22480745,109030.0,109020.0,1.1278]
[1748387893345,0.22480745,109030.0,109020.0,1.296414]
[1748387893552,0.22480745,109030.0,109020.0,0.7598]
[1748387893756,0.22480745,109030.0,109020.0,1.1278]
[1748387894027,0.22480745,109030.0,109020.0,1.294843]
[1748387898578,0.22480745,109030.0,109020.0,1.1278]
[1748387899044,0.22480745,109030.0,109020.0,0.1106]
[1748387899309,0.22480745,109030.0,109020.0,0.024]
[1748387899533,0.22480745,109030.0,109020.0,0.1106]
[1748387900026,0.22480745,109030.0,109020.0,0.1066]
[1748387900461,0.22480745,109030.0,109020.0,0.1086]
[1748387910878,0.2205432,109030.0,109020.0,0.1086]
[1748387913094,0.2205432,109030.0,109020.0,0.022]
[1748387913304,0.2205432,109030.0,109020.0,0.1086]
[1748387917367,0.2205432,109030.0,109020.0,0.10658544]
[1748387917585,0.1883432,109030.0,109020.0,0.10658544]
[1748387919651,0.1883432,109030.0,109020.0,0.12298544]
[1748387919915,0.1883432,109030.0,109020.0,0.13701413]
[1748387920343,0.1883432,109030.0,109020.0,0.41837413]
[1748387920780,0.1883432,109030.0,109020.0,0.52512808]
[1748387921209,0.1883432,109030.0,109020.0,0.93114808]
[1748387921447,0.1883432,109030.0,109020.0,2.08266416]
[1748387922813,0.17826457,109040.0,109020.0,0.95866536]
[1748387923027,0.22012162,109030.0,109020.0,5.85801241]
[1748387923249,0.22012162,109030.0,109020.0,5.94906636]
[1748387923516,0.18743551,109040.0,109030.0,0.55807872]
[1748387923734,0.22010185,109040.0,109030.0,2.32046727]
[1748387923984,0.21093141,109040.0,109030.0,2.32046727]
[1748387924205,0.20176072,109040.0,109030.0,2.06193191]
[1748387924445,0.20176072,109040.0,109030.0,2.02593191]
[1748387924892,0.20176072,109040.0,109030.0,1.80640791]
[1748387925119,0.20176072,109040.0,109030.0,1.76060591]
[1748387925353,0.20176072,109040.0,109030.0,1.67080591]
[1748387925354,0.20376072,109040.0,109030.0,1.67080591]
[1748387925998,0.20476072,109040.0,109030.0,1.67080591]
[1748387926472,0.20476072,109040.0,109030.0,1.85424166]
[1748387926732,0.19558986,109040.0,109030.0,1.67080591]
[1748387927210,0.19558986,109040.0,109030.0,1.85424166]
[1748387928153,0.19558986,109040.0,109030.0,1.67080591]
[1748387928396,0.19558986,109040.0,109030.0,1.57765991]
[1748387928650,0.19558986,109040.0,109030.0,1.56135991]
[1748387929310,0.18541892,109040.0,109030.0,1.76109566]
[1748387929745,0.18541892,109040.0,109030.0,1.42209566]
[1748387929975,0.18541892,109040.0,109030.0,1.43126744]
[1748387930479,0.18541892,109040.0,109030.0,1.44043914]
[1748387930695,0.18341892,109040.0,109030.0,1.44961075]
[1748387931161,0.18341892,109040.0,109030.0,1.80961075]
[1748387931672,0.18341892,109040.0,109030.0,2.19623914]
[1748387932617,0.18341892,109040.0,109030.0,2.49553914]
[1748387933317,0.18341892,109040.0,109030.0,2.50471075]
[1748387933542,0.19258986,109040.0,109030.0,2.48841075]
[1748387933765,0.20176055,109040.0,109030.0,2.49758211]
[1748387934198,0.20176055,109040.0,109030.0,2.48841075]
[1748387934471,0.20176055,109040.0,109030.0,2.49758228]
[1748387934997,0.20176055,109040.0,109030.0,2.52285364]
[1748387935667,0.01834163,109040.0,109030.0,2.52285364]
[1748387935885,0.01834163,109040.0,109030.0,2.52285314]
[1748387936105,0.20176055,109040.0,109030.0,2.52285314]
[1748387937273,0.00917044,109040.0,109030.0,2.52285314]
[1748387937496,0.03668191,109040.0,109030.0,2.52285263]
[1748387939587,0.02751114,109040.0,109030.0,2.52285263]
[1748387939818,0.03668183,109040.0,109030.0,2.52285263]
[1748387940476,0.22927169,109040.0,109030.0,2.52285263]
[1748387940703,0.21816055,109040.0,109030.0,2.04505266]
[1748387940918,0.23336055,109040.0,109030.0,2.06339597]
[1748387941145,0.21816055,109040.0,109030.0,2.06339597]
[1748387941486,0.21816055,109040.0,109030.0,1.76409597]
[1748387941917,0.21816055,109040.0,109030.0,1.75492444]
[1748387942115,0.21816055,109040.0,109030.0,1.77326775]
[1748387942703,0.21816055,109040.0,109030.0,1.38716444]
[1748387942912,0.21816055,109040.0,109030.0,1.76409597]
[1748387945026,0.21816055,109040.0,109030.0,1.56231691]
[1748387945262,0.23406055,109040.0,109030.0,0.94596191]
[1748387945496,0.23406055,109040.0,109030.0,0.85490796]
[1748387946853,0.23406055,109040.0,109030.0,0.76838796]
[1748387947099,0.23406055,109040.0,109030.0,1.13610796]
[1748387947786,0.23406055,109040.0,109030.0,1.12452]
[1748387948008,0.23406055,109040.0,109030.0,0.7568]
[1748387948226,0.23406055,109040.0,109030.0,1.12452]
[1748387948703,0.23406055,109040.0,109030.0,0.7568]
[1748387948935,0.27145005,109040.0,109030.0,0.84332]
[1748387950842,0.27145005,109040.0,109030.0,0.84328]
[1748387952010,0.27145005,109040.0,109030.0,0.7568]
[1748387952493,0.27145005,109040.0,109030.0,0.84328]
[1748387952495,0.27145005,109040.0,109030.0,0.50328]
[1748387952771,0.362504,109040.0,109030.0,0.10748]
[1748387953936,0.362504,109040.0,109030.0,0.10648]
[1748387954411,0.363504,109040.0,109030.0,0.10648]
[1748387954627,0.364504,109040.0,109030.0,0.10648]
[1748387955072,0.3271145,109040.0,109030.0,0.10648]
[1748387966565,0.3271145,109040.0,109030.0,0.10768069]
[1748387968864,0.3271145,109040.0,109030.0,0.02120069]
[1748387969073,0.3271145,109040.0,109030.0,0.10772069]
[1748387970374,0.22310736,109030.0,109020.0,0.19781836]
[1748387970584,0.22310736,109030.0,109020.0,0.08652]
[1748387971429,0.22310736,109030.0,109020.0,0.08548]